Cogmind - Beta 14 *** ADVENTURER MODE // 2024.10.08 @ 16:57:10 Player: EgorIV Result: Destroyed by as-49876 with Assembled F-torch Performance ------------- Evolutions (0) 0 Regions Visited (2) 400 Robots Destroyed (7) 35 Value Destroyed (200) 200 Prototype IDs (0) 0 Alien Tech Used (0) 0 Bonus (0) 0 TOTAL SCORE: 635 Bonus ------- None Cogmind --------- Core Integrity 0/250 Matter 295/300 Energy 122/125 System Corruption 3% Temperature Cool (20) Movement Treading (160) Location -10/Mines Parts ------- > --- POWER (1) -------- Light Ion Engine > --- PROPULSION (2) --- Light Treads > --- UTILITY (2) ------ (None) > --- WEAPON (2) ------- (None) > --- INVENTORY (5) ---- Light Treads Peak State ------------ > --- POWER ------------ Light Nuclear Core > --- PROPULSION ------- Light Treads Light Treads > --- UTILITY ---------- Signal Interpreter Propulsion Shielding > --- WEAPON ----------- Assault Rifle Light Assault Rifle > --- INVENTORY -------- Light Ion Engine Light Treads [Rating: 9] Favorites ----------- Power Ion Engine Engine Ion Engine Power Core Light Nuclear Core Propulsion Wheel Treads Light Treads Wheel Wheel Hover Unit Hover Unit Utility Small Storage Unit Storage Small Storage Unit Processor Signal Interpreter Protection Propulsion Shielding Weapon Assault Rifle Energy Gun Small Laser Ballistic Gun Assault Rifle Build | -11 -10 -10 ------- Run | Yrd Mat Min Slots Evolved . | . . . Power . | . . . Propulsion . | . . . Utility . | . . . Weapon . | . . . Parts Attached 22 | 6 9 7 Power 6 | 1 2 3 Engine 5 | 1 2 2 Core 1 | . . 1 Reactor . | . . . Propulsion 7 | 2 1 4 Treads 4 | . . 4 Leg . | . . . Wheel 2 | 2 . . Hover 1 | . 1 . Flight . | . . . Utility 3 | 1 2 . Device . | . . . Storage 1 | 1 . . Processor 1 | . 1 . Hackware . | . . . Protection 1 | . 1 . Artifact . | . . . Weapon 6 | 2 4 . Energy Gun 2 | 1 1 . Energy Cannon . | . . . Ballistic Gun 4 | 1 3 . Ballistic Cannon . | . . . Launcher . | . . . Special Weapon . | . . . Impact Weapon . | . . . Slashing Weapon . | . . . Piercing Weapon . | . . . Special Melee Weapon . | . . . Unidentified Prototypes . | . . . Parts Lost 11 | . 5 6 Power 2 | . 1 1 Propulsion 3 | . 2 1 Utility 2 | . . 2 Weapon 4 | . 2 2 Highest Loss Streak 6 | . 3 6 To Critical Strikes . | . . . Average Slot Usage (%) 82 | . 72 86 Engine 3 | . 8 . Core 1 | . . 2 Treads 18 | . . 28 Wheel 3 | . 10 . Hover 3 | . 10 . Processor 11 | . 7 14 Protection 10 | . 5 13 Energy Gun 4 | . 14 . Ballistic Gun 22 | . 13 26 Peak Build Rating 9 | 6 6 9 Average Rating 5 | 5 5 6 On Entrance 3 | . 6 4 Naked Turns . | . . . Heaviest Build 13 | 13 13 9 Greatest Support 40 | 26 26 40 Greatest Overweight (x) 1 | . 1 . Average Overweight (x) . | . . . Largest Inventory Capacity 8 | 8 8 5 Average Capacity 7 | 7 5 5 Most Carried 5 | 4 5 2 Average Carried 3 | 3 4 1 Final Capacity 8 | 8 5 5 Final Carried 4 | 4 3 1 Class Distribution -------------------- 100% | Mutant Dominant Class ---------------- Mutant | -10/Materials Mutant | -10/Mines Resources | -11 -10 -10 ----------- Run | Yrd Mat Min Matter Collected 442 | 194 162 86 Remotely . | . . . Salvage Created 329 | . 240 89 Parts 16 | . 11 5 Haulers Intercepted . | . . . Recyclers Shooed . | . . . Parts Field Recycled . | . . . Retrieved Matter . | . . . Parts Self-Destructed . | . . . Prevented . | . . . Kills | -11 -10 -10 ------- Run | Yrd Mat Min Combat Hostiles Destroyed 4 | . 2 2 Guns 4 | . 2 2 Classes Destroyed 3 | . 3 . Recycler 1 | . 1 . Watcher 2 | . 2 . Grunt 4 | . 2 2 Best Kill Streak 2 | . 2 2 Combat Bots Only 2 | . 1 2 Max Kills in Single Turn 1 | . 1 1 Gunslinging . | . . . Exploded . | . . . Melee . | . . . Uniques/NPCs Destroyed . | . . . Combat | -11 -10 -10 -------- Run | Yrd Mat Min Hostile Shots Fired 161 | . 102 59 Missed 65 | . 47 18 Damage Taken 1017 | . 527 490 Core 258 | . 161 97 Absorbed by Shields . | . . . Redirected to Shielding 52 | . 14 38 Ignored by Resistances 309 | . 162 147 Core Remaining (%) 100 | 100 . . Volleys Fired 21 | . 12 9 Largest 2 | . 2 2 Hottest 60 | . 60 40 Shots Fired 42 | . 24 18 Gun 42 | . 24 18 Cannon . | . . . Launcher . | . . . Special . | . . . Kinetic 31 | . 13 18 Thermal 11 | . 11 . Explosive . | . . . Electromagnetic . | . . . Robot Hit Streak 34 | . 17 34 Robot Miss Streak 1 | . 1 . Penetration Max . | . . . Secondary Targets 3 | . 2 1 Max Gunslinging Chain 1 | . 1 1 Shots Hit Robots 37 | . 20 17 Core Hits 17 | . 11 6 Critical Kills . | . . . Critical Parts Destroyed . | . . . Critical Strikes . | . . . Melee Attacks . | . . . Impact . | . . . Slashing . | . . . Piercing . | . . . Sneak Attacks . | . . . Combat Hostiles . | . . . Follow-up Attacks . | . . . Damage Inflicted 391 | . 202 189 Guns 391 | . 202 189 Cannons . | . . . Explosions . | . . . Melee . | . . . Ramming . | . . . Kinetic 293 | . 104 189 Thermal 98 | . 98 . Explosive . | . . . Electromagnetic . | . . . Impact . | . . . Slashing . | . . . Piercing . | . . . Highest Corruption 3 | . . 3 Average Corruption 2 | . . 2 Corruption Purged . | . . . Corruption Blocked . | . . . Effects 1 | . . 1 Data Loss (minor) 1 | . . 1 Overload Shots . | . . . Overflow Damage . | . . . Projectiles . | . . . Explosions . | . . . Melee . | . . . Knockbacks . | . . . Impact . | . . . Kinetic . | . . . Secondary . | . . . Self-Inflicted Damage . | . . . Shots . | . . . Rammed . | . . . Targets Rammed . | . . . Kicked . | . . . Crushed . | . . . Highest Temperature 97 | . 97 16 Average Temperature 24 | . 31 7 Received Heat Transfer 629 | . 429 200 Siege Activations . | . . . Robots Corrupted . | . . . Combat Hostiles . | . . . Parts Fried . | . . . Impact Corruptions . | . . . Robots Melted . | . . . Combat Hostiles . | . . . Parts Melted . | . . . Heat Transferred 225 | . 225 . Parts Sabotaged . | . . . Parts Stolen . | . . . Parts Stripped . | . . . Power Chain Reactions . | . . . Alert | -11 -10 -10 ------- Run | Yrd Mat Min Peak Influence 134 | . 134 59 Initial 44 | . . 44 Average 13 | . 71 46 Maximum Alert Level . | . . . Low Security (%) 100 | 100 100 100 Level 1 . | . . . Level 2 . | . . . Level 3 . | . . . Level 4 . | . . . Level 5 . | . . . High Security . | . . . Max Security . | . . . Squads Dispatched 2 | . 2 . Investigation 2 | . 2 . Extermination . | . . . Reinforcement . | . . . Assault . | . . . Garrison . | . . . Intercept . | . . . Searches Triggered . | . . . Construction Impeded . | . . . Haulers Reinforced . | . . . Active Scanning Responses . | . . . Cargo Convoy Interrupts . | . . . Stealth | -11 -10 -10 --------- Run | Yrd Mat Min Distress Signals 1 | . 1 . Communications Jammed . | . . . Distress Signals . | . . . Times Spotted 25 | . 12 13 Peak Tracking Total 11 | . 8 11 Tactical Retreats 3 | . 1 2 Traps | -11 -10 -10 ------- Run | Yrd Mat Min Traps Triggered 2 | . 2 . Indirectly . | . . . Trap Hack Attempts . | . . . Triggered . | . . . Disarmed . | . . . Reprogrammed . | . . . Reused . | . . . Traps Extracted . | . . . Installed . | . . . Triggered . | . . . Machines | -11 -10 -10 ---------- Run | Yrd Mat Min Machines Disabled . | . . . Max in Single Turn . | . . . Machines Repaired . | . . . Machines Dismantled . | . . . Machines Sabotaged . | . . . Overloaded Fab Kills . | . . . Hacking | -11 -10 -10 --------- Run | Yrd Mat Min Machines Accessed 4 | . 4 . Terminals 3 | . 3 . Fabricators . | . . . Repair Stations . | . . . Recycling Units 1 | . 1 . Scanalyzers . | . . . Garrison Access . | . . . Total Hacks 13 | . 13 . Successful 7 | . 7 . Failed 5 | . 5 . Catastrophic 2 | . 2 . Database Lockouts 1 | . 1 . Manual . | . . . Terminals 11 | . 11 . Fabricators . | . . . Repair Stations . | . . . Recycling Units 2 | . 2 . Scanalyzers . | . . . Garrison Access . | . . . Terminal Hacks 6 | . 6 . Record 5 | . 5 . Dispatch Records 1 | . 1 . Fabricator Hacks . | . . . Repair Station Hacks . | . . . Recycling Unit Hacks 1 | . 1 . Report Inventory 1 | . 1 . Scanalyzer . | . . . Garrison Access Hacks . | . . . Unauthorized Hacks . | . . . Terminals . | . . . Fabricators . | . . . Repair Stations . | . . . Recycling Units . | . . . Scanalyzers . | . . . Garrison Access . | . . . Data Cores Recovered . | . . . Used . | . . . Hacking Detections 3 | . 3 . Full Trace Events 1 | . 1 . Feedback Events . | . . . Feedback Blocked . | . . . Robot Schematics Acquired . | . . . Robots Built . | . . . Authchips . | . . . Time . | . . . Total Robot Build Rating . | . . . Part Schematics Acquired . | . . . Parts Built . | . . . Authchips . | . . . Time . | . . . Total Part Build Rating . | . . . Parts Repaired . | . . . Time . | . . . Parts Recycled . | . . . Recycled Matter . | . . . Retrieved Matter . | . . . Retrieved Components . | . . . Parts Scanalyzed . | . . . Part Schematics Acquired . | . . . Parts Damaged . | . . . Bothacking | -11 -10 -10 ------------ Run | Yrd Mat Min Used RIF Installer . | . . . Robots Hacked . | . . . Non-combat . | . . . Combat . | . . . Robot Hacks Applied . | . . . Relay Couplers Released . | . . . Fabnet Peak Effective % . | . . . Robots Rewired . | . . . Allies Hacked . | . . . Hacks Repelled . | . . . Allies | -11 -10 -10 -------- Run | Yrd Mat Min Total Allies . | . . . Largest Group . | . . . Highest-Rated Group . | . . . Highest-Rated Ally . | . . . Total Orders . | . . . Ally Attacks . | . . . Total Damage . | . . . Kills . | . . . Allies Corrupted . | . . . Allies Melted . | . . . Intel | -11 -10 -10 ------- Run | Yrd Mat Min Robot Analysis Total . | . . . Derelict Logs Recovered . | . . . Drone Launches . | . . . Drone Recoveries . | . . . Exploration | -11 -10 -10 ------------- Run | Yrd Mat Min Turns Passed 3186 | 2393 256 537 Spaces Moved 908 | 324 273 311 Core 34 | 5 29 . Treads 311 | . . 311 Legs . | . . . Wheels 353 | 319 34 . Hover 210 | . 210 . Flight . | . . . Fastest Speed 50 | 50 60 160 Average Speed 107 | 89 70 160 Slowest Speed 160 | 90 100 160 Overloaded Moves . | . . . Propulsion Burnouts . | . . . Robots Hopped . | . . . Cave-ins Triggered . | . . . Exploration Rate (%) 56 | 60 44 66 Regions Visited 2 Branch Regions 1 Pre-discovered Areas . | . . . Known Exits Taken 1 | . 1 . Unknown Exits Taken 1 | 1 . . Scrap Searched 1 | . . 1 Spaces Dug . | . . . Terrain Destroyed . | . . . Melee . | . . . Projectile . | . . . AOE . | . . . Terrain Rammed . | . . . Walls Destroyed . | . . . Machines Disabled . | . . . Actions | -11 -10 -10 --------- Run | Yrd Mat Min Total 3073 | 2427 313 333 Wait 2105 | 2088 13 4 Move 906 | 323 272 311 Hop . | . . . Pick Up 16 | 10 4 2 Fast Attach 2 | . 2 . Attach 14 | 6 4 4 Detach . | . . . Swap 6 | . 3 3 Drop 3 | . 3 . Fire 21 | . 12 9 Melee . | . . . Ram . | . . . Kick . | . . . Crush . | . . . Escape Stasis . | . . . Rewire . | . . . Trap . | . . . Miscellaneous . | . . . Route ------- -11/Scrapyard -10/Materials -10/Mines History --------- Turn | Location | Event 12 | -11/Scrapyard | Discovered new exit (range 15) 2394 | -11/Scrapyard | Entered Materials 2395 | -10/Materials | Build established: Mutant 2456 | -10/Materials | Discovered new exit (range 12) 2476 | -10/Materials | Central database locked down 2615 | -10/Materials | Core integrity fell below 50% 2649 | -10/Materials | Identified exit to Mines 2650 | -10/Materials | Entered Mines 2652 | -10/Mines | Lost 3 parts (1n2w) 3044 | -10/Mines | Core integrity fell below 20% 3148 | -10/Mines | Assembled infested the area 3187 | -10/Mines | Destroyed by as-49876 with Assembled F-torch Last Messages --------------- Acquired Lgt. Treads. K-01 Serf collects debris. G-47 Trooper destroyed. Switching to secondary target: G-34 Mercenary. G-34 Mercenary destroyed. Acquired 31 matter. Acquired 35 matter. Acquired Lgt. Nuclear Core. ALERT: Infestation in the mines, dispatching Demolisher response squad. Assault Rifle destroyed. Propulsion Shielding destroyed. Lgt. Assault Rifle destroyed. as-42468 destroyed. Lgt. Nuclear Core destroyed. System corrupted by crushing effect (+2). System corrupted: Component data lost. Signal Interpreter destroyed. System corrupted by crushing effect (+1). Lgt. Treads destroyed. Map ----- +----------------------------------------------------+ | | | | | | | | | | | | | | | ?????????????????????????????????????????????????? | | ?????????????????????????????????????????????????? | | ########??????????####???????????????????????????? | | == ##????????## #??????????????????????????? | | =% #####????# #?????????????????????????? | | ### ##???# #####????????????????????? | | ##?## #???? ##???????????????????? | | #???# #????? #???????????????????? | | #???# #??????? #?####??????????????? | | #???# ##????????# ### ##?????????????? | | ????# ####??????????# ##????????????? | | ????# ##?#####????????# #????????????? | | ????# #### ##???????#a #????????????? | | ????# ## #??????## a % #?????????????? | | ????## #?????##a """ ### #?????????????? | | ?????## ##????## a"""a##?# #?????????????? | | ??????# ###?????# aa""" #??# #?????????????? | | ??????# ##???????# """ ##?# #?????????????? | | ?????## ##????????## @a ### #?????????????? | | ###### ##??????????## ## #########?????? | | ##????????????## ## #?????? | | #????????####?## ### #?????? | | ### #???????## ### ##?## ##### | | #?# ##?????## ##### #??????? | | ### ##????# #??????????? | | ## ##??## ## #######????????????? | | ## #### #### #??????????????????? | | ### #??# ##??????????????????? | | #?### ##??# #???????????????????? | | #???# #######??# #???????????????????? | | #???# #####????????# #???????????????????? | | #???# ###????????????# #???????????????????? | | #???# #??????????????## #???????????????????? | | #???# #???????????????### #???????????????????? | | ##???# #############?????# #???????????????????? | | ?????# #?????# #???????????????????? | | ?????# #?????# #???????????????????? | | ?????############# #?????# ???????????????????? | | ????????########## #?????####???????????????????? | | ????????# #????????????????????????????? | | ????????# ######## #????????????????????????????? | | ????????# #??????# #????????????????????????????? | | #???????# #?????## ####?????????????????????????? | +----------------------------------------------------+ Best States ------------- Heat Dissipation 25 Energy Generation 14 Energy Capacity 250 Matter Stores 300 Matter Capacity 300 Sight Range 16 Terrain Scan Density 10 Resistance: KI 20 Resistance: TH 20 Resistance: EX 20 Resistance: EM 20 Resistance: I 20 Resistance: S 20 Resistance: P 20 Propulsion Shielding 33 Evasion (%) 53 Recoil Reduction 2 Offensive Hacking 10 Item Schematics ----------------- None Robot Schematics ------------------ None Fabricated ------------ Nothing Alien Tech Used ----------------- None Achievements -------------- None Challenges ------------ None Game ------ Seed BackupMediumSystem Manual? 0 Play Time 00:22:18 Cumulative 21.1 hours Start 2024.10.08 @ 16:19:52 End 2024.10.08 @ 16:57:10 Sessions 1 Manual Loads 0 Difficulty Adventurer Special Mode None Game No. 6 Rogue 0 Adventurer 6 Explorer 0 Win Type - Total 0 Types 0/0/0/0/0/0/0/0/0 Lore% 7 Gallery% 20 Achievement% 21 Wizard Run 0 Options --------- Layout 1 ASCII 0 Keyboard 0 Movement Mouse Keybinds 0 Fullscreen 1 Font 32/SmallcapsGlow Map View 50x40 Zoom Use 0% Tactical HUD 0 Map Filters NONE Filters NONE Steam 0 RUN: 6dbf5ffc-3574-447e-9440-6814f8919daf